[Event "*** SCC Grand Prix: Titled Tuesday Blitz"]
[Site "Chess.com"]
[Date "2020.10.06"]
[Round "3"]
[White "BanjoKazooieN64"]
[Black "Hikaru"]
[Result "1/2-1/2"]
[WhiteElo "2484"]
[BlackElo "3205"]
[TimeControl "180+1"]
[EndTime "10:27:38 PDT"]
[Termination "Game drawn by repetition"]

1. e4 {[%clk 0:03:00.9]} 1... g6 {[%clk 0:02:42.9]} 2. d4 {[%clk 0:03:00.7]}
2... Bg7 {[%clk 0:02:43.8]} 3. Nc3 {[%clk 0:03:00.8]} 3... d6 {[%clk 0:02:38]}
4. Be3 {[%clk 0:03:00.9]} 4... a6 {[%clk 0:02:35.2]} 5. Qd2 {[%clk 0:02:59.9]}
5... b5 {[%clk 0:02:35.1]} 6. Nf3 {[%clk 0:02:58.3]} 6... Nd7 {[%clk 0:02:31.8]}
7. Bd3 {[%clk 0:02:58.1]} 7... Bb7 {[%clk 0:02:31.8]} 8. O-O {[%clk 0:02:56.7]}
8... c5 {[%clk 0:02:32.5]} 9. Rfe1 {[%clk 0:02:46.8]} 9... cxd4 {[%clk
0:02:31.4]} 10. Bxd4 {[%clk 0:02:46.6]} 10... Ngf6 {[%clk 0:02:32.1]} 11. h3
{[%clk 0:02:40.3]} 11... e5 {[%clk 0:02:31]} 12. Be3 {[%clk 0:02:40]} 12... b4
{[%clk 0:02:31.2]} 13. Nd5 {[%clk 0:02:39.5]} 13... Bxd5 {[%clk 0:02:28.4]} 14.
exd5 {[%clk 0:02:39.7]} 14... a5 {[%clk 0:02:26.4]} 15. Bb5 {[%clk 0:02:27.8]}
15... O-O {[%clk 0:02:24.4]} 16. Bg5 {[%clk 0:02:26.8]} 16... Nc5 {[%clk
0:02:22.7]} 17. Bc6 {[%clk 0:02:23.1]} 17... Rb8 {[%clk 0:02:10.3]} 18. Qe3
{[%clk 0:02:17.7]} 18... Qb6 {[%clk 0:02:06.7]} 19. Nd2 {[%clk 0:02:12.8]} 19...
Ncd7 {[%clk 0:02:01.8]} 20. Nc4 {[%clk 0:02:08.3]} 20... Qc7 {[%clk 0:02:00.8]}
21. a3 {[%clk 0:01:57.3]} 21... Nb6 {[%clk 0:01:56.6]} 22. Nxb6 {[%clk 0:01:53]}
22... Rxb6 {[%clk 0:01:56.1]} 23. axb4 {[%clk 0:01:31]} 23... Rxb4 {[%clk
0:01:57]} 24. b3 {[%clk 0:01:26.8]} 24... Nh5 {[%clk 0:01:50.2]} 25. Ra2 {[%clk
0:01:08.6]} 25... Nf4 {[%clk 0:01:47.4]} 26. Bxf4 {[%clk 0:01:03.4]} 26... Rxf4
{[%clk 0:01:37.9]} 27. Qd2 {[%clk 0:00:59]} 27... h5 {[%clk 0:01:35.4]} 28. Qxa5
{[%clk 0:00:56]} 28... Qe7 {[%clk 0:01:35.5]} 29. Qc3 {[%clk 0:00:43.2]} 29...
h4 {[%clk 0:01:33]} 30. Ra4 {[%clk 0:00:40.5]} 30... Qf6 {[%clk 0:01:32]} 31.
Rxf4 {[%clk 0:00:39.2]} 31... Qxf4 {[%clk 0:01:32.9]} 32. Qe3 {[%clk 0:00:36.6]}
32... Qb4 {[%clk 0:01:31.5]} 33. Qe4 {[%clk 0:00:34.5]} 33... Qd2 {[%clk
0:01:27]} 34. Qe2 {[%clk 0:00:32.3]} 34... Qc3 {[%clk 0:01:26.6]} 35. Rd1 {[%clk
0:00:25.5]} 35... f5 {[%clk 0:01:25.9]} 36. Qd2 {[%clk 0:00:22.7]} 36... Qc5
{[%clk 0:01:14.2]} 37. b4 {[%clk 0:00:22.8]} 37... Qc4 {[%clk 0:01:13.5]} 38. b5
{[%clk 0:00:21.7]} 38... Rb8 {[%clk 0:01:07.9]} 39. Rb1 {[%clk 0:00:20.4]} 39...
Qc5 {[%clk 0:00:58.7]} 40. Qb4 {[%clk 0:00:20.3]} 40... Qxc2 {[%clk 0:00:58.9]}
41. b6 {[%clk 0:00:19.8]} 41... e4 {[%clk 0:00:59.3]} 42. b7 {[%clk 0:00:17.4]}
42... Be5 {[%clk 0:00:59.9]} 43. Qb6 {[%clk 0:00:14.1]} 43... Bd4 {[%clk
0:00:50.5]} 44. Qxd4 {[%clk 0:00:13.1]} 44... Qxb1+ {[%clk 0:00:50.7]} 45. Kh2
{[%clk 0:00:14]} 45... Qc1 {[%clk 0:00:39.5]} 46. Qf6 {[%clk 0:00:14]} 46...
Qf4+ {[%clk 0:00:39]} 47. Kg1 {[%clk 0:00:14.3]} 47... Kh7 {[%clk 0:00:38.5]}
48. Qf7+ {[%clk 0:00:14.3]} 48... Kh6 {[%clk 0:00:39]} 49. Qc7 {[%clk
0:00:13.4]} 49... e3 {[%clk 0:00:37.4]} 50. fxe3 {[%clk 0:00:12.1]} 50... Qxe3+
{[%clk 0:00:38.3]} 51. Kh2 {[%clk 0:00:12.5]} 51... Qg3+ {[%clk 0:00:37]} 52.
Kg1 {[%clk 0:00:12.8]} 52... Re8 {[%clk 0:00:37.5]} 53. Bxe8 {[%clk 0:00:12.6]}
53... Qe1+ {[%clk 0:00:33.9]} 54. Kh2 {[%clk 0:00:13.1]} 54... Qg3+ {[%clk
0:00:34.1]} 55. Kg1 {[%clk 0:00:13.6]} 55... Qe1+ {[%clk 0:00:32.5]} 56. Kh2
{[%clk 0:00:13.9]} 56... Qe5+ {[%clk 0:00:31.3]} 57. Kg1 {[%clk 0:00:14.3]}
57... Qe1+ {[%clk 0:00:31.4]} 1/2-1/2

[Event "*** SCC Grand Prix: Titled Tuesday Blitz"]
[Site "Chess.com"]
[Date "2020.10.06"]
[Round "3"]
[White "WeAintSurePal"]
[Black "TomiLen"]
[Result "0-1"]
[WhiteElo "2376"]
[BlackElo "2561"]
[TimeControl "180+1"]
[EndTime "10:27:39 PDT"]
[Termination "TomiLen won by checkmate"]

1. d4 {[%clk 0:03:00.9]} 1... Nf6 {[%clk 0:02:57]} 2. Bg5 {[%clk 0:02:58.6]}
2... g6 {[%clk 0:02:55.6]} 3. Bxf6 {[%clk 0:02:57.7]} 3... exf6 {[%clk
0:02:55.7]} 4. e3 {[%clk 0:02:58.6]} 4... d5 {[%clk 0:02:55.5]} 5. c3 {[%clk
0:02:59.5]} 5... c6 {[%clk 0:02:55.2]} 6. Nd2 {[%clk 0:02:56.9]} 6... Bd6 {[%clk
0:02:55]} 7. Bd3 {[%clk 0:02:54.7]} 7... f5 {[%clk 0:02:55]} 8. Ne2 {[%clk
0:02:55]} 8... Nd7 {[%clk 0:02:55.1]} 9. Nf3 {[%clk 0:02:54]} 9... Nf6 {[%clk
0:02:55.3]} 10. h4 {[%clk 0:02:47.2]} 10... Qe7 {[%clk 0:02:53.8]} 11. g3 {[%clk
0:02:39.8]} 11... h5 {[%clk 0:02:51.9]} 12. Nf4 {[%clk 0:02:39.7]} 12... Be6
{[%clk 0:02:50.3]} 13. Qb3 {[%clk 0:02:34.6]} 13... Ne4 {[%clk 0:02:45.3]} 14.
Bxe4 {[%clk 0:02:32.9]} 14... fxe4 {[%clk 0:02:40.8]} 15. Nxe6 {[%clk
0:02:26.9]} 15... exf3 {[%clk 0:02:12.9]} 16. Ng5 {[%clk 0:02:23.7]} 16... Bxg3
{[%clk 0:02:09.6]} 17. fxg3 {[%clk 0:02:13.2]} 17... Qxe3+ {[%clk 0:02:09.3]}
18. Kd1 {[%clk 0:02:13.2]} 18... O-O {[%clk 0:00:54]} 19. Qc2 {[%clk 0:02:10.8]}
19... Rae8 {[%clk 0:00:52.7]} 20. Qd2 {[%clk 0:02:10.3]} 20... f6 {[%clk
0:00:24.4]} 21. Nh3 {[%clk 0:01:59]} 21... Qe2+ {[%clk 0:00:21.6]} 22. Qxe2
{[%clk 0:01:58.4]} 22... Rxe2 {[%clk 0:00:22]} 23. Rf1 {[%clk 0:01:39.7]} 23...
Rh2 {[%clk 0:00:15.9]} 24. Nf4 {[%clk 0:01:38.1]} 24... g5 {[%clk 0:00:13.3]}
25. Nd3 {[%clk 0:01:33.1]} 25... g4 {[%clk 0:00:11.9]} 26. Rc1 {[%clk
0:01:29.8]} 26... Rg2 {[%clk 0:00:10.7]} 27. Nf4 {[%clk 0:01:27.6]} 27... Rxg3
{[%clk 0:00:09.8]} 28. Nxh5 {[%clk 0:01:27.7]} 28... Rh3 {[%clk 0:00:09.3]} 29.
Nf4 {[%clk 0:01:21.7]} 29... Kf7 {[%clk 0:00:08.1]} 30. h5 {[%clk 0:01:20.8]}
30... Rh2 {[%clk 0:00:07.7]} 31. Rc2 {[%clk 0:01:17.3]} 31... Rxc2 {[%clk
0:00:07.3]} 32. Kxc2 {[%clk 0:01:18.2]} 32... f5 {[%clk 0:00:07.7]} 33. Kd2
{[%clk 0:01:16.6]} 33... Kf6 {[%clk 0:00:07.9]} 34. Ke3 {[%clk 0:01:12.1]} 34...
Re8+ {[%clk 0:00:07.9]} 35. Kf2 {[%clk 0:01:12.3]} 35... Kg5 {[%clk 0:00:08.5]}
36. Kg3 {[%clk 0:01:12.3]} 36... Re3 {[%clk 0:00:07.1]} 37. Rf2 {[%clk
0:01:09.4]} 37... b5 {[%clk 0:00:06]} 38. a3 {[%clk 0:01:09]} 38... a5 {[%clk
0:00:05.8]} 39. h6 {[%clk 0:01:04.8]} 39... Kxh6 {[%clk 0:00:05]} 40. Rh2+
{[%clk 0:01:05.1]} 40... Kg7 {[%clk 0:00:04.3]} 41. Nh5+ {[%clk 0:00:45.5]}
41... Kf7 {[%clk 0:00:04.1]} 42. Nf4 {[%clk 0:00:43.4]} 42... f2+ {[%clk
0:00:03.8]} 43. Kg2 {[%clk 0:00:40]} 43... Rf3 {[%clk 0:00:03.7]} 44. Kf1 {[%clk
0:00:36.2]} 44... Rxf4 {[%clk 0:00:04]} 45. Rh7+ {[%clk 0:00:35.1]} 45... Kg6
{[%clk 0:00:04.2]} 46. Rc7 {[%clk 0:00:34.7]} 46... g3 {[%clk 0:00:04.5]} 47.
Rxc6+ {[%clk 0:00:34.7]} 47... Kg5 {[%clk 0:00:04.9]} 48. Rc7 {[%clk 0:00:34.4]}
48... g2+ {[%clk 0:00:05.1]} 49. Kxg2 {[%clk 0:00:35]} 49... f1=Q+ {[%clk
0:00:05.7]} 50. Kh2 {[%clk 0:00:35.7]} 50... Rf2+ {[%clk 0:00:05.6]} 51. Kg3
{[%clk 0:00:35.7]} 51... Qg2# {[%clk 0:00:05.9]} 0-1

[Event "*** SCC Grand Prix: Titled Tuesday Blitz"]
[Site "Chess.com"]
[Date "2020.10.06"]
[Round "3"]
[White "DanielDardha2005"]
[Black "Guenplen"]
[Result "1-0"]
[WhiteElo "2685"]
[BlackElo "2854"]
[TimeControl "180+1"]
[EndTime "10:27:40 PDT"]
[Termination "DanielDardha2005 won on time"]

1. d4 {[%clk 0:03:00.4]} 1... d5 {[%clk 0:02:59.5]} 2. c4 {[%clk 0:03:00.7]}
2... e6 {[%clk 0:02:59.7]} 3. Nf3 {[%clk 0:03:01.1]} 3... Nf6 {[%clk 0:02:59.7]}
4. Nc3 {[%clk 0:03:00.6]} 4... a6 {[%clk 0:03:00.1]} 5. cxd5 {[%clk 0:02:59.8]}
5... exd5 {[%clk 0:03:01]} 6. Bg5 {[%clk 0:03:00]} 6... Be6 {[%clk 0:03:01.1]}
7. Qc2 {[%clk 0:03:00.1]} 7... Nbd7 {[%clk 0:03:00.7]} 8. e3 {[%clk 0:02:59.8]}
8... h6 {[%clk 0:03:01.1]} 9. Bf4 {[%clk 0:02:56.5]} 9... g5 {[%clk 0:03:00.9]}
10. Bg3 {[%clk 0:02:55.3]} 10... Nh5 {[%clk 0:02:59.1]} 11. Bd3 {[%clk
0:02:48.6]} 11... c6 {[%clk 0:02:57.8]} 12. O-O-O {[%clk 0:02:38.8]} 12... Nxg3
{[%clk 0:02:55.8]} 13. hxg3 {[%clk 0:02:37.3]} 13... Bg7 {[%clk 0:02:56.7]} 14.
e4 {[%clk 0:02:35.6]} 14... dxe4 {[%clk 0:02:36.4]} 15. Bxe4 {[%clk 0:02:30.5]}
15... Nf6 {[%clk 0:02:35.3]} 16. Bf5 {[%clk 0:02:18.1]} 16... Bxf5 {[%clk
0:02:34.4]} 17. Qxf5 {[%clk 0:02:19]} 17... O-O {[%clk 0:02:34.3]} 18. Kb1
{[%clk 0:01:50]} 18... Qc8 {[%clk 0:02:27]} 19. Qc2 {[%clk 0:01:35.9]} 19... Re8
{[%clk 0:02:21.5]} 20. Ne5 {[%clk 0:01:32]} 20... Nd5 {[%clk 0:02:20.3]} 21. Ne4
{[%clk 0:01:05.9]} 21... Qf5 {[%clk 0:01:42.4]} 22. g4 {[%clk 0:00:59.7]} 22...
Qe6 {[%clk 0:01:41.9]} 23. Nc5 {[%clk 0:00:57.3]} 23... Qe7 {[%clk 0:01:40.4]}
24. Rde1 {[%clk 0:00:51.1]} 24... f6 {[%clk 0:01:29]} 25. Nf3 {[%clk 0:00:42.2]}
25... Qf7 {[%clk 0:01:28.9]} 26. a3 {[%clk 0:00:32.5]} 26... Bf8 {[%clk
0:01:22.9]} 27. Ne4 {[%clk 0:00:29.6]} 27... Re6 {[%clk 0:01:15.4]} 28. Ng3
{[%clk 0:00:26.7]} 28... Rae8 {[%clk 0:01:14.9]} 29. Rxe6 {[%clk 0:00:26.2]}
29... Qxe6 {[%clk 0:01:14.3]} 30. Qg6+ {[%clk 0:00:20.5]} 30... Kh8 {[%clk
0:00:56.2]} 31. Nf5 {[%clk 0:00:21.4]} 31... Re7 {[%clk 0:00:16]} 32. Nxe7
{[%clk 0:00:21.1]} 32... Nxe7 {[%clk 0:00:15.1]} 33. Qd3 {[%clk 0:00:11.4]}
33... Qxg4 {[%clk 0:00:15]} 34. g3 {[%clk 0:00:11.7]} 34... Nd5 {[%clk 0:00:13]}
35. Nd2 {[%clk 0:00:09.7]} 35... f5 {[%clk 0:00:10.6]} 36. Re1 {[%clk
0:00:09.5]} 36... Kg8 {[%clk 0:00:09]} 37. Nf3 {[%clk 0:00:07.9]} 37... Bg7
{[%clk 0:00:06.1]} 38. Ne5 {[%clk 0:00:08.2]} 38... Bxe5 {[%clk 0:00:06]} 39.
Rxe5 {[%clk 0:00:09.1]} 1-0

[Event "*** SCC Grand Prix: Titled Tuesday Blitz"]
[Site "Chess.com"]
[Date "2020.10.06"]
[Round "3"]
[White "Parhamov"]
[Black "Sankalp_Gupta2003"]
[Result "1-0"]
[WhiteElo "2969"]
[BlackElo "2711"]
[TimeControl "180+1"]
[EndTime "10:27:41 PDT"]
[Termination "Parhamov won by resignation"]

1. e4 {[%clk 0:02:59.4]} 1... e6 {[%clk 0:02:57.5]} 2. d4 {[%clk 0:02:58.5]}
2... d5 {[%clk 0:02:58.1]} 3. Nc3 {[%clk 0:02:57.5]} 3... Nf6 {[%clk 0:02:58]}
4. e5 {[%clk 0:02:56.6]} 4... Nfd7 {[%clk 0:02:57.9]} 5. f4 {[%clk 0:02:57.5]}
5... c5 {[%clk 0:02:58.4]} 6. Nf3 {[%clk 0:02:56.6]} 6... Nc6 {[%clk 0:02:59.3]}
7. Be3 {[%clk 0:02:55.6]} 7... Be7 {[%clk 0:02:59.7]} 8. Qd2 {[%clk 0:02:53.7]}
8... O-O {[%clk 0:03:00.4]} 9. a3 {[%clk 0:02:54.2]} 9... b6 {[%clk 0:02:55.2]}
10. h4 {[%clk 0:02:48]} 10... f5 {[%clk 0:02:48.4]} 11. h5 {[%clk 0:02:45.1]}
11... cxd4 {[%clk 0:02:42.8]} 12. Nxd4 {[%clk 0:02:44.7]} 12... Nxd4 {[%clk
0:02:43.3]} 13. Bxd4 {[%clk 0:02:44.6]} 13... Nc5 {[%clk 0:02:44]} 14. O-O-O
{[%clk 0:02:37.7]} 14... Bd7 {[%clk 0:02:28.4]} 15. Be2 {[%clk 0:02:35.1]} 15...
Rc8 {[%clk 0:02:28]} 16. g4 {[%clk 0:02:33.5]} 16... fxg4 {[%clk 0:02:16.9]} 17.
Be3 {[%clk 0:02:32.8]} 17... b5 {[%clk 0:02:10.3]} 18. Rhg1 {[%clk 0:02:29.6]}
18... a5 {[%clk 0:01:50.5]} 19. Bxc5 {[%clk 0:02:26.9]} 19... Bxc5 {[%clk
0:01:37]} 20. Rxg4 {[%clk 0:02:27]} 20... b4 {[%clk 0:01:31.9]} 21. Ne4 {[%clk
0:02:26]} 21... bxa3 {[%clk 0:01:29.9]} 22. Nxc5 {[%clk 0:02:22.5]} 22... axb2+
{[%clk 0:01:28.9]} 23. Kb1 {[%clk 0:02:13.5]} 23... Rxc5 {[%clk 0:01:29.8]} 24.
Rdg1 {[%clk 0:02:09.2]} 24... Rf7 {[%clk 0:01:25.1]} 25. Bd3 {[%clk 0:02:09.3]}
25... Rc7 {[%clk 0:00:32.2]} 26. Qg2 {[%clk 0:02:03.6]} 26... Qf8 {[%clk
0:00:30.9]} 27. h6 {[%clk 0:02:01.3]} 27... Be8 {[%clk 0:00:18]} 28. hxg7 {[%clk
0:01:57]} 28... Rxg7 {[%clk 0:00:18.3]} 29. Qh3 {[%clk 0:01:57.5]} 29... Kh8
{[%clk 0:00:08]} 30. Rxg7 {[%clk 0:01:50]} 30... Rxg7 {[%clk 0:00:08.9]} 31.
Rxg7 {[%clk 0:01:50.2]} 31... Qxg7 {[%clk 0:00:09.8]} 32. Qxe6 {[%clk
0:01:50.7]} 32... Qf7 {[%clk 0:00:07.7]} 33. Qc8 {[%clk 0:01:43.2]} 33... Kg7
{[%clk 0:00:03.3]} 34. f5 {[%clk 0:01:42.9]} 34... Bd7 {[%clk 0:00:02.2]} 35.
f6+ {[%clk 0:01:41.3]} 35... Kh6 {[%clk 0:00:02.2]} 36. Qc5 {[%clk 0:01:41.6]}
36... Kg5 {[%clk 0:00:01.7]} 37. Qe3+ {[%clk 0:01:41.3]} 37... Kg4 {[%clk
0:00:02.1]} 38. Be2+ {[%clk 0:01:40.3]} 38... Kf5 {[%clk 0:00:02.2]} 39. Bf1
{[%clk 0:01:40.8]} 39... Be6 {[%clk 0:00:01.5]} 40. Qg3 {[%clk 0:01:39]} 40...
Ke4 {[%clk 0:00:01.5]} 41. c3 {[%clk 0:01:34.3]} 41... d4 {[%clk 0:00:01.5]} 42.
Bg2+ {[%clk 0:01:32.9]} 42... Kf5 {[%clk 0:00:01.9]} 43. cxd4 {[%clk 0:01:30.9]}
43... Ba2+ {[%clk 0:00:01.3]} 44. Kxb2 {[%clk 0:01:31.3]} 44... a4 {[%clk
0:00:01.6]} 45. Qf3+ {[%clk 0:01:10.9]} 45... Kg5 {[%clk 0:00:01.9]} 46. Qe3+
{[%clk 0:01:10.9]} 46... Kf5 {[%clk 0:00:02.2]} 47. Be4+ {[%clk 0:01:04.3]}
47... Ke6 {[%clk 0:00:01.7]} 48. Kxa2 {[%clk 0:01:03.2]} 48... Kd7+ {[%clk
0:00:01.8]} 49. d5 {[%clk 0:01:02.5]} 49... Qh5 {[%clk 0:00:02.1]} 50. f7 {[%clk
0:00:55]} 50... Qh2+ {[%clk 0:00:01.4]} 51. Ka3 {[%clk 0:00:54.3]} 51... Qxe5
{[%clk 0:00:01.1]} 52. Qa7+ {[%clk 0:00:52.2]} 52... Kd6 {[%clk 0:00:01.2]} 53.
f8=Q+ {[%clk 0:00:52.7]} 1-0

[Event "*** SCC Grand Prix: Titled Tuesday Blitz"]
[Site "Chess.com"]
[Date "2020.10.06"]
[Round "3"]
[White "kirillgenius"]
[Black "tlomigtlis"]
[Result "1-0"]
[WhiteElo "2314"]
[BlackElo "2500"]
[TimeControl "180+1"]
[EndTime "10:27:43 PDT"]
[Termination "kirillgenius won by checkmate"]

1. e4 {[%clk 0:03:00.9]} 1... c5 {[%clk 0:02:59.8]} 2. Nf3 {[%clk 0:03:00.6]}
2... d6 {[%clk 0:02:59.9]} 3. d4 {[%clk 0:02:57.9]} 3... cxd4 {[%clk 0:03:00.8]}
4. Nxd4 {[%clk 0:02:58.4]} 4... Nf6 {[%clk 0:03:01]} 5. Nc3 {[%clk 0:02:58.1]}
5... a6 {[%clk 0:03:01.1]} 6. Bc4 {[%clk 0:02:57.6]} 6... e6 {[%clk 0:03:01]} 7.
Bb3 {[%clk 0:02:56.5]} 7... Nbd7 {[%clk 0:03:00.5]} 8. f4 {[%clk 0:02:55.8]}
8... Nc5 {[%clk 0:03:00.4]} 9. O-O {[%clk 0:02:51.7]} 9... Be7 {[%clk
0:03:00.4]} 10. f5 {[%clk 0:02:50.1]} 10... O-O {[%clk 0:03:00]} 11. Qf3 {[%clk
0:02:39.2]} 11... e5 {[%clk 0:02:59.4]} 12. Nde2 {[%clk 0:02:38.7]} 12... b5
{[%clk 0:02:59.3]} 13. Bg5 {[%clk 0:02:34]} 13... Bb7 {[%clk 0:02:57.8]} 14.
Bxf6 {[%clk 0:02:33.9]} 14... Bxf6 {[%clk 0:02:58.6]} 15. Bd5 {[%clk 0:02:30.4]}
15... Qb6 {[%clk 0:02:43.1]} 16. Bxb7 {[%clk 0:02:28.3]} 16... Nxb7+ {[%clk
0:02:23.4]} 17. Kh1 {[%clk 0:02:26.9]} 17... Na5 {[%clk 0:02:14.1]} 18. Nd5
{[%clk 0:02:24.7]} 18... Qd8 {[%clk 0:02:13.6]} 19. Ng3 {[%clk 0:02:18.2]} 19...
Bh4 {[%clk 0:02:03.9]} 20. f6 {[%clk 0:02:01]} 20... g6 {[%clk 0:01:38.3]} 21.
Nf5 {[%clk 0:01:27.2]} 21... gxf5 {[%clk 0:00:38.3]} 22. Qxf5 {[%clk 0:01:09]}
22... Kh8 {[%clk 0:00:21.1]} 23. Rf3 {[%clk 0:01:08.1]} 23... Rg8 {[%clk
0:00:19.4]} 24. Rh3 {[%clk 0:01:04.2]} 24... Rg5 {[%clk 0:00:19.2]} 25. Qf3
{[%clk 0:00:55.8]} 25... Nc6 {[%clk 0:00:15.3]} 26. Rxh4 {[%clk 0:00:53.3]}
26... Qg8 {[%clk 0:00:13.9]} 27. c3 {[%clk 0:00:48.3]} 27... Re8 {[%clk
0:00:13]} 28. Rf1 {[%clk 0:00:47.8]} 28... Qg6 {[%clk 0:00:12.1]} 29. g3 {[%clk
0:00:27.1]} 29... Kg8 {[%clk 0:00:11.2]} 30. a4 {[%clk 0:00:22.4]} 30... h6
{[%clk 0:00:10.3]} 31. axb5 {[%clk 0:00:21.4]} 31... axb5 {[%clk 0:00:11.2]} 32.
Ra1 {[%clk 0:00:21.4]} 32... Kh7 {[%clk 0:00:11]} 33. Ra6 {[%clk 0:00:18.2]}
33... Nb8 {[%clk 0:00:04.9]} 34. Ra8 {[%clk 0:00:15.6]} 34... Rg8 {[%clk
0:00:03.1]} 35. Ne7 {[%clk 0:00:12.8]} 35... Nd7 {[%clk 0:00:03.3]} 36. Rxg8
{[%clk 0:00:08.7]} 36... Qxg8 {[%clk 0:00:02.9]} 37. Nxg8 {[%clk 0:00:09.6]}
37... Rxg8 {[%clk 0:00:03.1]} 38. Qf5+ {[%clk 0:00:09.4]} 38... Rg6 {[%clk
0:00:04]} 39. Qxd7 {[%clk 0:00:09.8]} 39... Rxf6 {[%clk 0:00:04.9]} 40. Qe7
{[%clk 0:00:08.4]} 40... Rf1+ {[%clk 0:00:04.8]} 41. Kg2 {[%clk 0:00:08.3]}
41... Kg7 {[%clk 0:00:04.7]} 42. Rg4+ {[%clk 0:00:07.7]} 42... Kh7 {[%clk
0:00:04.6]} 43. Kxf1 {[%clk 0:00:07.6]} 43... h5 {[%clk 0:00:05.5]} 44. Qxf7+
{[%clk 0:00:07.4]} 44... Kh6 {[%clk 0:00:06.4]} 45. Qg6# {[%clk 0:00:07.5]} 1-0

[Event "*** SCC Grand Prix: Titled Tuesday Blitz"]
[Site "Chess.com"]
[Date "2020.10.06"]
[Round "3"]
[White "aisha_zakirova"]
[Black "SHIVACalypso"]
[Result "0-1"]
[WhiteElo "2185"]
[BlackElo "2357"]
[TimeControl "180+1"]
[EndTime "10:27:43 PDT"]
[Termination "SHIVACalypso won on time"]

1. d4 {[%clk 0:02:49.7]} 1... e6 {[%clk 0:02:57.6]} 2. c4 {[%clk 0:02:48.1]}
2... Nf6 {[%clk 0:02:57]} 3. Nf3 {[%clk 0:02:47.3]} 3... Bb4+ {[%clk 0:02:56]}
4. Bd2 {[%clk 0:02:46.1]} 4... Be7 {[%clk 0:02:49]} 5. Nc3 {[%clk 0:02:42]} 5...
d5 {[%clk 0:02:47.8]} 6. Qc2 {[%clk 0:02:34.8]} 6... O-O {[%clk 0:02:44.6]} 7.
e4 {[%clk 0:02:32.9]} 7... dxe4 {[%clk 0:02:43.9]} 8. Nxe4 {[%clk 0:02:32]} 8...
Nxe4 {[%clk 0:02:41.2]} 9. Qxe4 {[%clk 0:02:28.1]} 9... Nd7 {[%clk 0:02:42.1]}
10. Be2 {[%clk 0:02:21]} 10... Nf6 {[%clk 0:02:39.9]} 11. Qc2 {[%clk 0:02:20]}
11... c5 {[%clk 0:02:38.4]} 12. dxc5 {[%clk 0:02:11.4]} 12... Bxc5 {[%clk
0:02:36.8]} 13. O-O {[%clk 0:02:09.9]} 13... Qc7 {[%clk 0:02:21.7]} 14. Bc3
{[%clk 0:02:00.5]} 14... Qe7 {[%clk 0:02:16.5]} 15. a3 {[%clk 0:01:54]} 15... a6
{[%clk 0:02:14.7]} 16. b4 {[%clk 0:01:52.6]} 16... Ba7 {[%clk 0:02:12.8]} 17.
Rad1 {[%clk 0:01:39.9]} 17... h6 {[%clk 0:02:01.2]} 18. Rfe1 {[%clk 0:01:31]}
18... Ng4 {[%clk 0:01:44.4]} 19. c5 {[%clk 0:01:28.6]} 19... b6 {[%clk
0:01:38.6]} 20. h3 {[%clk 0:01:21.4]} 20... Nf6 {[%clk 0:01:37.7]} 21. Nd4
{[%clk 0:01:03]} 21... bxc5 {[%clk 0:01:31.7]} 22. Nc6 {[%clk 0:01:01.9]} 22...
Qc7 {[%clk 0:01:28.7]} 23. Nxa7 {[%clk 0:00:53.5]} 23... Qxa7 {[%clk 0:01:24.6]}
24. Bxf6 {[%clk 0:00:44.9]} 24... gxf6 {[%clk 0:01:23.4]} 25. bxc5 {[%clk
0:00:37.6]} 25... Bb7 {[%clk 0:01:20.7]} 26. c6 {[%clk 0:00:25.2]} 26... Rac8
{[%clk 0:01:15.2]} 27. Qb2 {[%clk 0:00:22.1]} 27... Bxc6 {[%clk 0:01:10]} 28.
Qxf6 {[%clk 0:00:19.7]} 28... Bd5 {[%clk 0:00:58.2]} 29. Qxh6 {[%clk 0:00:15.5]}
29... f5 {[%clk 0:00:57]} 30. Bh5 {[%clk 0:00:13.8]} 30... Rc7 {[%clk
0:00:51.3]} 31. Bg6 {[%clk 0:00:12.4]} 31... Rg7 {[%clk 0:00:51]} 32. Rd3 {[%clk
0:00:12.2]} 32... Qe7 {[%clk 0:00:47.5]} 33. Rg3 {[%clk 0:00:11.9]} 33... Qf6
{[%clk 0:00:47.4]} 34. Bh7+ {[%clk 0:00:10.5]} 34... Kh8 {[%clk 0:00:45.9]} 35.
Qxf6 {[%clk 0:00:10.5]} 35... Rxf6 {[%clk 0:00:45.4]} 36. Rxg7 {[%clk
0:00:10.3]} 36... Kxg7 {[%clk 0:00:46.3]} 37. Bxf5 {[%clk 0:00:08.9]} 37... Rxf5
{[%clk 0:00:46.3]} 38. Rb1 {[%clk 0:00:09.3]} 38... Rf4 {[%clk 0:00:43.5]} 39.
Rb6 {[%clk 0:00:09.3]} 39... Ra4 {[%clk 0:00:42.7]} 40. Kh2 {[%clk 0:00:07.9]}
40... Rxa3 {[%clk 0:00:42.9]} 41. h4 {[%clk 0:00:06.2]} 41... Ra2 {[%clk
0:00:43]} 42. Kg3 {[%clk 0:00:05]} 42... a5 {[%clk 0:00:42.1]} 43. Ra6 {[%clk
0:00:04.5]} 43... a4 {[%clk 0:00:42.3]} 44. Ra7+ {[%clk 0:00:04.6]} 44... Kh6
{[%clk 0:00:40.7]} 45. Ra6 {[%clk 0:00:04.2]} 45... Ra1 {[%clk 0:00:40.7]} 46.
f3 {[%clk 0:00:02.1]} 46... a3 {[%clk 0:00:41]} 47. Kg4 {[%clk 0:00:02.1]} 47...
a2 {[%clk 0:00:41.4]} 48. g3 {[%clk 0:00:01.3]} 48... Rg1 {[%clk 0:00:41.5]} 0-1